[Event "Titled Tuesday Blitz April 11 Late 2023"]
[White "Kaplan, Avi Harrison"]
[Black "Rodriguez Santiago, Jaime"]
[WhiteFideId "30934559"]
[BlackFideId "3100898"]
[WhiteElo "1983"]
[BlackElo "2025"]
[Result "0-1"]
[Round "11"]
[TimeControl "180+2"]
[Date "2023.04.11"]
[WhiteClock "0:00:04"]
[BlackClock "0:00:49"]

1. h3 {[%clk 0:03:00]}  Nf6 {[%clk 0:02:58]} 2. a3 {[%clk 0:03:01]}  d5 {[%clk 0:02:58]} 3. b4 {[%clk 0:02:59]}  a5 {[%clk 0:02:57]} 4. b5 {[%clk 0:02:59]}  e5 {[%clk 0:02:57]} 5. Bb2 {[%clk 0:02:59]}  Bd6 {[%clk 0:02:56]} 6. d3 {[%clk 0:02:56]}  Qe7 {[%clk 0:02:56]} 7. Nd2 {[%clk 0:02:55]}  O-O {[%clk 0:02:54]} 8. c4 {[%clk 0:02:54]}  c6 {[%clk 0:02:52]} 9. Qc2 {[%clk 0:02:48]}  Bf5 {[%clk 0:02:49]} 10. g4 {[%clk 0:02:47]}  Bg6 {[%clk 0:02:49]} 11. Bg2 {[%clk 0:02:47]}  h6 {[%clk 0:02:31]} 12. e4 {[%clk 0:02:10]}  Nbd7 {[%clk 0:02:23]} 13. Ngf3 {[%clk 0:02:02]}  Rfc8 {[%clk 0:02:21]} 14. Nh4 {[%clk 0:02:01]}  Bh7 {[%clk 0:02:20]} 15. bxc6 {[%clk 0:01:58]}  bxc6 {[%clk 0:02:20]} 16. Nf5 {[%clk 0:01:58]}  Bxf5 {[%clk 0:02:19]} 17. gxf5 {[%clk 0:01:59]}  a4 {[%clk 0:02:16]} 18. Rg1 {[%clk 0:01:54]}  Nh5 {[%clk 0:02:09]} 19. exd5 {[%clk 0:01:45]}  cxd5 {[%clk 0:02:02]} 20. Bxd5 {[%clk 0:01:46]}  Rab8 {[%clk 0:01:58]} 21. Ne4 {[%clk 0:01:37]}  Nf4 {[%clk 0:01:49]} 22. Nxd6 {[%clk 0:00:49]}  Rxb2 {[%clk 0:01:41]} 23. Bxf7+ {[%clk 0:00:45]}  Kf8 {[%clk 0:01:35]} 24. f6 {[%clk 0:00:35]}  Qxf6 {[%clk 0:01:23]} 25. Qxb2 {[%clk 0:00:15]}  Nxd3+ {[%clk 0:01:20]} 26. Kd2 {[%clk 0:00:16]}  Nxb2 {[%clk 0:01:14]} 27. Kc2 {[%clk 0:00:15]}  Qxf2+ {[%clk 0:01:12]} 28. Kb1 {[%clk 0:00:10]}  Rb8 {[%clk 0:01:11]} 29. Nb5 {[%clk 0:00:02]}  Nd3 {[%clk 0:01:03]} 30. Ra2 {[%clk 0:00:02]}  Qxg1+ {[%clk 0:01:02]} 31. Kc2 {[%clk 0:00:03]}  e4 {[%clk 0:01:01]} 32. Kc3 {[%clk 0:00:03]}  Kxf7 {[%clk 0:00:59]} 33. Nd6+ {[%clk 0:00:02]}  Ke6 {[%clk 0:00:58]} 34. Nxe4 {[%clk 0:00:03]}  Rb3+ {[%clk 0:00:57]} 35. Kc2 {[%clk 0:00:02]}  Qg2+ {[%clk 0:00:54]} 36. Nd2 {[%clk 0:00:02]}  N7c5 {[%clk 0:00:52]} 37. Ra1 {[%clk 0:00:01]}  Rb2+ {[%clk 0:00:52]} 38. Kc3 {[%clk 0:00:02]}  Qxd2+ {[%clk 0:00:51]} 39. Kd4 {[%clk 0:00:03]}  Ne5+ {[%clk 0:00:49]} 40. Kxc5 {[%clk 0:00:04]}  Qd6# {[%clk 0:00:49]} 0-1


[Site "https://www.chess.com"]

[Event "Titled Tuesday Blitz April 11 Late 2023"]
[White "Smith, Garrett L"]
[Black "Gatterer, Florian"]
[WhiteFideId "2024829"]
[BlackFideId "811688"]
[WhiteElo "2047"]
[BlackElo "2221"]
[Result "1/2-1/2"]
[Round "11"]
[TimeControl "180+2"]
[Date "2023.04.11"]
[WhiteClock "0:02:23"]
[BlackClock "0:02:29"]

1. e4 {[%clk 0:03:00]}  c6 {[%clk 0:03:00]} 2. d4 {[%clk 0:03:00]}  d5 {[%clk 0:03:00]} 3. e5 {[%clk 0:03:00]}  Bf5 {[%clk 0:02:59]} 4. Nd2 {[%clk 0:03:00]}  e6 {[%clk 0:02:59]} 5. Nb3 {[%clk 0:03:00]}  c5 {[%clk 0:02:54]} 6. dxc5 {[%clk 0:02:36]}  Bxc5 {[%clk 0:02:53]} 7. Nxc5 {[%clk 0:02:36]}  Qa5+ {[%clk 0:02:52]} 8. c3 {[%clk 0:02:35]}  Qxc5 {[%clk 0:02:52]} 9. Nf3 {[%clk 0:02:36]}  Qc7 {[%clk 0:02:48]} 10. Be2 {[%clk 0:02:33]}  Nc6 {[%clk 0:02:48]} 11. Qa4 {[%clk 0:02:28]}  Ne7 {[%clk 0:02:42]} 12. Bf4 {[%clk 0:02:25]}  O-O {[%clk 0:02:39]} 13. O-O {[%clk 0:02:23]}  Ng6 {[%clk 0:02:29]} 1/2-1/2


[Site "https://www.chess.com"]

[Event "Titled Tuesday Blitz April 11 Late 2023"]
[White "Rose, Felix"]
[Black "Fernandez, Maria Florencia"]
[WhiteFideId "5105722"]
[BlackFideId "116459"]
[WhiteElo "2039"]
[BlackElo "2120"]
[Result "0-1"]
[Round "11"]
[TimeControl "180+2"]
[Date "2023.04.11"]
[WhiteClock "0:00:02"]
[BlackClock "0:00:11"]

1. e4 {[%clk 0:03:00]}  c5 {[%clk 0:02:58]} 2. Nf3 {[%clk 0:03:00]}  d6 {[%clk 0:02:58]} 3. d4 {[%clk 0:03:00]}  cxd4 {[%clk 0:02:59]} 4. Nxd4 {[%clk 0:03:01]}  Nf6 {[%clk 0:03:00]} 5. Nc3 {[%clk 0:03:01]}  g6 {[%clk 0:03:00]} 6. Be3 {[%clk 0:03:01]}  Bg7 {[%clk 0:03:01]} 7. f3 {[%clk 0:03:01]}  O-O {[%clk 0:02:55]} 8. Qd2 {[%clk 0:03:01]}  Nc6 {[%clk 0:02:55]} 9. O-O-O {[%clk 0:03:01]}  d5 {[%clk 0:02:55]} 10. Qe1 {[%clk 0:02:59]}  e5 {[%clk 0:02:54]} 11. Nxc6 {[%clk 0:02:59]}  bxc6 {[%clk 0:02:55]} 12. exd5 {[%clk 0:03:00]}  cxd5 {[%clk 0:02:56]} 13. Bg5 {[%clk 0:02:56]}  h6 {[%clk 0:02:50]} 14. Bxf6 {[%clk 0:01:32]}  Bxf6 {[%clk 0:02:50]} 15. Nxd5 {[%clk 0:01:30]}  Bg7 {[%clk 0:02:50]} 16. Bc4 {[%clk 0:01:13]}  Bb7 {[%clk 0:02:21]} 17. h4 {[%clk 0:01:09]}  Rc8 {[%clk 0:02:04]} 18. Bb3 {[%clk 0:01:06]}  Bxd5 {[%clk 0:01:52]} 19. Rxd5 {[%clk 0:00:55]}  Qf6 {[%clk 0:01:52]} 20. Qe4 {[%clk 0:00:41]}  Kh8 {[%clk 0:01:45]} 21. g4 {[%clk 0:00:38]}  Qb6 {[%clk 0:01:39]} 22. g5 {[%clk 0:00:33]}  f5 {[%clk 0:01:24]} 23. gxf6 {[%clk 0:00:30]}  Qxf6 {[%clk 0:01:17]} 24. h5 {[%clk 0:00:26]}  g5 {[%clk 0:01:16]} 25. Rf1 {[%clk 0:00:13]}  Qb6 {[%clk 0:01:02]} 26. Rd7 {[%clk 0:00:11]}  Rcd8 {[%clk 0:00:55]} 27. Rfd1 {[%clk 0:00:10]}  Rxd7 {[%clk 0:00:55]} 28. Rxd7 {[%clk 0:00:11]}  Qg1+ {[%clk 0:00:50]} 29. Rd1 {[%clk 0:00:10]}  Qf2 {[%clk 0:00:48]} 30. c3 {[%clk 0:00:07]}  Rxf3 {[%clk 0:00:41]} 31. Rd8+ {[%clk 0:00:06]}  Rf8 {[%clk 0:00:41]} 32. Rxf8+ {[%clk 0:00:06]}  Qxf8 {[%clk 0:00:42]} 33. Bc2 {[%clk 0:00:06]}  Qf1+ {[%clk 0:00:41]} 34. Kd2 {[%clk 0:00:06]}  Qf4+ {[%clk 0:00:37]} 35. Kd3 {[%clk 0:00:06]}  g4 {[%clk 0:00:30]} 36. Qa8+ {[%clk 0:00:05]}  Bf8 {[%clk 0:00:27]} 37. Qe4 {[%clk 0:00:04]}  g3 {[%clk 0:00:21]} 38. Ke2 {[%clk 0:00:02]}  Qf2+ {[%clk 0:00:18]} 39. Kd1 {[%clk 0:00:02]}  Qf1+ {[%clk 0:00:16]} 40. Kd2 {[%clk 0:00:02]}  Qf4+ {[%clk 0:00:15]} 41. Ke2 {[%clk 0:00:03]}  Qf7 {[%clk 0:00:12]} 42. Qxe5+ {[%clk 0:00:01]}  Bg7 {[%clk 0:00:12]} 43. Qxg3 {[%clk 0:00:02]}  Qxh5+ {[%clk 0:00:11]} 0-1


[Site "https://www.chess.com"]

[Event "Titled Tuesday Blitz April 11 Late 2023"]
[White "Harriott, Tyrell"]
[Black "Kostiukov, Alexandr"]
[WhiteFideId "2086484"]
[BlackFideId "14108100"]
[WhiteElo "2107"]
[BlackElo "2202"]
[Result "1-0"]
[Round "11"]
[TimeControl "180+2"]
[Date "2023.04.11"]
[WhiteClock "0:00:14"]
[BlackClock "0:00:03"]

1. d4 {[%clk 0:03:00]}  g6 {[%clk 0:02:54]} 2. e3 {[%clk 0:03:01]}  Bg7 {[%clk 0:02:54]} 3. Bd3 {[%clk 0:03:02]}  d6 {[%clk 0:02:55]} 4. f4 {[%clk 0:03:03]}  c5 {[%clk 0:02:51]} 5. c3 {[%clk 0:03:02]}  Nc6 {[%clk 0:02:51]} 6. Nf3 {[%clk 0:03:01]}  Nf6 {[%clk 0:02:51]} 7. Bc2 {[%clk 0:03:01]}  O-O {[%clk 0:02:51]} 8. d5 {[%clk 0:02:59]}  Nb8 {[%clk 0:02:50]} 9. e4 {[%clk 0:02:59]}  e6 {[%clk 0:02:50]} 10. O-O {[%clk 0:02:57]}  exd5 {[%clk 0:02:49]} 11. exd5 {[%clk 0:02:57]}  Bg4 {[%clk 0:02:48]} 12. h3 {[%clk 0:02:55]}  Bxf3 {[%clk 0:02:48]} 13. Qxf3 {[%clk 0:02:56]}  b5 {[%clk 0:02:44]} 14. f5 {[%clk 0:02:55]}  Qb6 {[%clk 0:02:38]} 15. Bg5 {[%clk 0:02:52]}  Nbd7 {[%clk 0:02:35]} 16. Na3 {[%clk 0:02:33]}  Ne5 {[%clk 0:02:34]} 17. Qd1 {[%clk 0:02:33]}  b4 {[%clk 0:02:15]} 18. Nb1 {[%clk 0:02:28]}  Nfd7 {[%clk 0:01:43]} 19. f6 {[%clk 0:02:22]}  Bh8 {[%clk 0:01:43]} 20. Nd2 {[%clk 0:02:09]}  Rfe8 {[%clk 0:01:32]} 21. c4 {[%clk 0:02:06]}  Qd8 {[%clk 0:01:24]} 22. Ne4 {[%clk 0:01:54]}  Nxc4 {[%clk 0:01:22]} 23. b3 {[%clk 0:01:54]}  Nce5 {[%clk 0:01:19]} 24. Nxd6 {[%clk 0:01:52]}  Rf8 {[%clk 0:00:56]} 25. Ne4 {[%clk 0:01:50]}  c4 {[%clk 0:00:42]} 26. Kh1 {[%clk 0:01:27]}  Rc8 {[%clk 0:00:37]} 27. bxc4 {[%clk 0:01:26]}  Rxc4 {[%clk 0:00:36]} 28. Rb1 {[%clk 0:01:22]}  a5 {[%clk 0:00:34]} 29. Qe2 {[%clk 0:01:17]}  Qc7 {[%clk 0:00:28]} 30. Bb3 {[%clk 0:01:16]}  Rd4 {[%clk 0:00:21]} 31. Rbc1 {[%clk 0:01:10]}  Qb7 {[%clk 0:00:16]} 32. Nc5 {[%clk 0:01:08]}  Nxc5 {[%clk 0:00:14]} 33. Qxe5 {[%clk 0:01:07]}  Nxb3 {[%clk 0:00:13]} 34. axb3 {[%clk 0:00:56]}  Rxd5 {[%clk 0:00:13]} 35. Qg3 {[%clk 0:00:50]}  Qb5 {[%clk 0:00:13]} 36. Bh6 {[%clk 0:00:47]}  Rfd8 {[%clk 0:00:12]} 37. Qc7 {[%clk 0:00:42]}  Qd7 {[%clk 0:00:11]} 38. Qg3 {[%clk 0:00:35]}  Rd3 {[%clk 0:00:09]} 39. Qh4 {[%clk 0:00:28]}  Rd4 {[%clk 0:00:07]} 40. Qf2 {[%clk 0:00:26]}  Rd2 {[%clk 0:00:07]} 41. Bxd2 {[%clk 0:00:25]}  h5 {[%clk 0:00:03]} 42. Bg5 {[%clk 0:00:23]}  Kh7 {[%clk 0:00:03]} 43. Rce1 {[%clk 0:00:17]}  Qd6 {[%clk 0:00:01]} 44. Re7 {[%clk 0:00:17]}  Rd7 {[%clk 0:00:01]} 45. Rfe1 {[%clk 0:00:16]}  Rxe7 {[%clk 0:00:02]} 46. fxe7 {[%clk 0:00:16]}  Qd5 {[%clk 0:00:03]} 47. e8=Q {[%clk 0:00:15]}  Bg7 {[%clk 0:00:03]} 48. Qexf7 {[%clk 0:00:14]} 1-0


[Site "https://www.chess.com"]

[Event "Titled Tuesday Blitz April 11 Late 2023"]
[White "Buchenau, Frank"]
[Black "Filgueiras, Nathan Felipe"]
[WhiteFideId "4604350"]
[BlackFideId "2188562"]
[WhiteElo "2157"]
[BlackElo "2241"]
[Result "1-0"]
[Round "11"]
[TimeControl "180+2"]
[Date "2023.04.11"]
[WhiteClock "0:00:16"]
[BlackClock "0:02:30"]

1. e4 {[%clk 0:03:00]}  c5 {[%clk 0:02:58]} 2. Nf3 {[%clk 0:03:00]}  d6 {[%clk 0:02:58]} 3. Bb5+ {[%clk 0:03:00]}  Bd7 {[%clk 0:02:58]} 4. Bxd7+ {[%clk 0:03:00]}  Nxd7 {[%clk 0:02:59]} 5. O-O {[%clk 0:02:59]}  Ngf6 {[%clk 0:02:54]} 6. Qe2 {[%clk 0:02:58]}  g6 {[%clk 0:02:54]} 7. c3 {[%clk 0:02:57]}  Bg7 {[%clk 0:02:54]} 8. d4 {[%clk 0:02:57]}  O-O {[%clk 0:02:54]} 9. e5 {[%clk 0:02:54]}  dxe5 {[%clk 0:02:54]} 10. dxe5 {[%clk 0:02:54]}  Nd5 {[%clk 0:02:55]} 11. e6 {[%clk 0:02:54]}  N7f6 {[%clk 0:02:53]} 12. Ng5 {[%clk 0:02:52]}  Qb6 {[%clk 0:02:45]} 13. Nxf7 {[%clk 0:02:32]}  Nc7 {[%clk 0:02:41]} 14. Nh6+ {[%clk 0:02:20]}  Kh8 {[%clk 0:02:40]} 15. Re1 {[%clk 0:02:19]}  Rad8 {[%clk 0:02:39]} 16. Na3 {[%clk 0:02:18]}  Qc6 {[%clk 0:02:30]} 17. Bf4 {[%clk 0:01:59]}  Ncd5 {[%clk 0:02:29]} 18. Bd2 {[%clk 0:01:52]}  Rc8 {[%clk 0:02:27]} 19. Nc4 {[%clk 0:01:48]}  Nh5 {[%clk 0:02:25]} 20. Ne5 {[%clk 0:01:44]}  Bxe5 {[%clk 0:02:25]} 21. Qxe5+ {[%clk 0:01:43]}  Nhf6 {[%clk 0:02:26]} 22. c4 {[%clk 0:01:37]}  Nb4 {[%clk 0:02:23]} 23. Bxb4 {[%clk 0:01:30]}  cxb4 {[%clk 0:02:24]} 24. b3 {[%clk 0:01:23]}  Qc5 {[%clk 0:02:23]} 25. Qxc5 {[%clk 0:01:13]}  Rxc5 {[%clk 0:02:24]} 26. Rad1 {[%clk 0:01:11]}  Kg7 {[%clk 0:02:23]} 27. Nf7 {[%clk 0:01:10]}  a5 {[%clk 0:02:21]} 28. Re5 {[%clk 0:01:05]}  Rxe5 {[%clk 0:02:19]} 29. Nxe5 {[%clk 0:01:05]}  Rc8 {[%clk 0:02:20]} 30. Nd7 {[%clk 0:00:57]}  Rc6 {[%clk 0:02:19]} 31. Kf1 {[%clk 0:00:55]}  Rxe6 {[%clk 0:02:17]} 32. Nxf6 {[%clk 0:00:48]}  Kxf6 {[%clk 0:02:18]} 33. Rd7 {[%clk 0:00:47]}  b6 {[%clk 0:02:18]} 34. f3 {[%clk 0:00:41]}  Rd6 {[%clk 0:02:18]} 35. Rxd6+ {[%clk 0:00:38]}  exd6 {[%clk 0:02:19]} 36. Ke2 {[%clk 0:00:38]}  Ke5 {[%clk 0:02:19]} 37. Ke3 {[%clk 0:00:36]}  d5 {[%clk 0:02:19]} 38. f4+ {[%clk 0:00:35]}  Kd6 {[%clk 0:02:19]} 39. Kd4 {[%clk 0:00:30]}  dxc4 {[%clk 0:02:20]} 40. Kxc4 {[%clk 0:00:29]}  Kc6 {[%clk 0:02:20]} 41. g4 {[%clk 0:00:29]}  b5+ {[%clk 0:02:20]} 42. Kd4 {[%clk 0:00:29]}  Kd6 {[%clk 0:02:20]} 43. f5 {[%clk 0:00:25]}  gxf5 {[%clk 0:02:21]} 44. gxf5 {[%clk 0:00:25]}  a4 {[%clk 0:02:21]} 45. f6 {[%clk 0:00:17]}  Ke6 {[%clk 0:02:21]} 46. Kc5 {[%clk 0:00:18]}  Kxf6 {[%clk 0:02:21]} 47. Kxb5 {[%clk 0:00:17]}  axb3 {[%clk 0:02:20]} 48. axb3 {[%clk 0:00:17]}  Ke5 {[%clk 0:02:21]} 49. Kxb4 {[%clk 0:00:17]}  Kd6 {[%clk 0:02:22]} 50. Kb5 {[%clk 0:00:17]}  Kc7 {[%clk 0:02:22]} 51. Kc5 {[%clk 0:00:17]}  Kb7 {[%clk 0:02:22]} 52. Kb5 {[%clk 0:00:16]}  h6 {[%clk 0:02:22]} 53. b4 {[%clk 0:00:16]}  h5 {[%clk 0:02:21]} 54. h4 {[%clk 0:00:15]}  Kc7 {[%clk 0:02:22]} 55. Kc5 {[%clk 0:00:14]}  Kb7 {[%clk 0:02:23]} 56. Kd5 {[%clk 0:00:12]}  Kb6 {[%clk 0:02:23]} 57. Ke5 {[%clk 0:00:12]}  Kb5 {[%clk 0:02:24]} 58. Kf5 {[%clk 0:00:13]}  Kxb4 {[%clk 0:02:25]} 59. Kg5 {[%clk 0:00:14]}  Kc5 {[%clk 0:02:25]} 60. Kxh5 {[%clk 0:00:14]}  Kd6 {[%clk 0:02:26]} 61. Kg6 {[%clk 0:00:15]}  Ke7 {[%clk 0:02:27]} 62. Kg7 {[%clk 0:00:15]}  Ke6 {[%clk 0:02:27]} 63. h5 {[%clk 0:00:15]}  Kf5 {[%clk 0:02:28]} 64. h6 {[%clk 0:00:16]}  Kg4 {[%clk 0:02:29]} 65. h7 {[%clk 0:00:16]}  Kf3 {[%clk 0:02:30]} 66. h8=Q {[%clk 0:00:16]} 1-0


[Site "https://www.chess.com"]

[Event "Titled Tuesday Blitz April 11 Late 2023"]
[White "Skaric, Djuro"]
[Black "Steenbekkers, Franck"]
[WhiteFideId "934569"]
[BlackFideId "1004220"]
[WhiteElo "2282"]
[BlackElo "2164"]
[Result "1-0"]
[Round "11"]
[TimeControl "180+2"]
[Date "2023.04.11"]
[WhiteClock "0:01:17"]
[BlackClock "0:01:14"]

1. g3 {[%clk 0:03:00]}  g6 {[%clk 0:02:58]} 2. Bg2 {[%clk 0:03:00]}  Bg7 {[%clk 0:02:59]} 3. d3 {[%clk 0:03:01]}  Nf6 {[%clk 0:02:58]} 4. Nf3 {[%clk 0:03:02]}  d5 {[%clk 0:02:58]} 5. O-O {[%clk 0:03:02]}  d4 {[%clk 0:02:58]} 6. e4 {[%clk 0:03:02]}  dxe3 {[%clk 0:02:58]} 7. fxe3 {[%clk 0:03:02]}  c5 {[%clk 0:02:58]} 8. Nc3 {[%clk 0:03:03]}  Nc6 {[%clk 0:02:57]} 9. e4 {[%clk 0:03:03]}  Ng4 {[%clk 0:02:56]} 10. h3 {[%clk 0:02:59]}  Bd4+ {[%clk 0:02:55]} 11. Nxd4 {[%clk 0:02:59]}  Qxd4+ {[%clk 0:02:53]} 12. Kh1 {[%clk 0:02:55]}  Nf2+ {[%clk 0:02:52]} 13. Rxf2 {[%clk 0:02:55]}  Qxf2 {[%clk 0:02:53]} 14. Nd5 {[%clk 0:02:53]}  O-O {[%clk 0:02:51]} 15. Bh6 {[%clk 0:02:49]}  Re8 {[%clk 0:02:47]} 16. Nc7 {[%clk 0:02:40]}  Qxg3 {[%clk 0:02:44]} 17. Nxa8 {[%clk 0:02:34]}  Bxh3 {[%clk 0:02:43]} 18. Qf3 {[%clk 0:02:33]}  Bxg2+ {[%clk 0:02:42]} 19. Qxg2 {[%clk 0:02:32]}  Qxg2+ {[%clk 0:02:37]} 20. Kxg2 {[%clk 0:02:31]}  Rxa8 {[%clk 0:02:38]} 21. c3 {[%clk 0:02:31]}  f6 {[%clk 0:02:34]} 22. Be3 {[%clk 0:02:30]}  b6 {[%clk 0:02:33]} 23. d4 {[%clk 0:02:29]}  cxd4 {[%clk 0:02:32]} 24. cxd4 {[%clk 0:02:29]}  Rd8 {[%clk 0:02:31]} 25. Rd1 {[%clk 0:02:27]}  Kf7 {[%clk 0:02:22]} 26. a3 {[%clk 0:02:26]}  Na5 {[%clk 0:02:20]} 27. Rc1 {[%clk 0:02:25]}  Rd7 {[%clk 0:02:18]} 28. Kf3 {[%clk 0:02:24]}  h5 {[%clk 0:02:13]} 29. Rc8 {[%clk 0:02:20]}  Kg7 {[%clk 0:02:10]} 30. Kf4 {[%clk 0:02:10]}  Nb3 {[%clk 0:02:06]} 31. d5 {[%clk 0:02:09]}  Na5 {[%clk 0:01:56]} 32. b4 {[%clk 0:02:05]}  Nb7 {[%clk 0:01:55]} 33. Ra8 {[%clk 0:02:01]}  g5+ {[%clk 0:01:53]} 34. Kf5 {[%clk 0:01:58]}  Nd6+ {[%clk 0:01:52]} 35. Ke6 {[%clk 0:01:57]}  Rc7 {[%clk 0:01:49]} 36. e5 {[%clk 0:01:56]}  fxe5 {[%clk 0:01:40]} 37. Bxg5 {[%clk 0:01:54]}  e4 {[%clk 0:01:40]} 38. Bxe7 {[%clk 0:01:30]}  Nf7 {[%clk 0:01:36]} 39. Bh4 {[%clk 0:01:29]}  Rc3 {[%clk 0:01:31]} 40. d6 {[%clk 0:01:28]}  e3 {[%clk 0:01:29]} 41. Rxa7 {[%clk 0:01:27]}  e2 {[%clk 0:01:21]} 42. Rxf7+ {[%clk 0:01:25]}  Kg6 {[%clk 0:01:22]} 43. Rf8 {[%clk 0:01:19]}  Re3+ {[%clk 0:01:21]} 44. Kd5 {[%clk 0:01:18]}  e1=Q {[%clk 0:01:18]} 45. Bxe1 {[%clk 0:01:17]}  Rxe1 {[%clk 0:01:18]} 46. d7 {[%clk 0:01:18]}  Rd1+ {[%clk 0:01:18]} 47. Kc6 {[%clk 0:01:18]}  h4 {[%clk 0:01:15]} 48. d8=Q {[%clk 0:01:17]}  Rxd8 {[%clk 0:01:14]} 49. Rxd8 {[%clk 0:01:17]} 1-0


[Site "https://www.chess.com"]

[Event "Titled Tuesday Blitz April 11 Late 2023"]
[White "Karamsetty, Jeevan"]
[Black "Ozalp, Burak"]
[WhiteFideId "2025337"]
[BlackFideId "6314210"]
[WhiteElo "2111"]
[BlackElo "2106"]
[Result "1-0"]
[Round "11"]
[TimeControl "180+2"]
[Date "2023.04.11"]
[WhiteClock "0:01:26"]
[BlackClock "0:01:17"]

1. e4 {[%clk 0:03:00]}  c6 {[%clk 0:03:00]} 2. d4 {[%clk 0:02:59]}  d5 {[%clk 0:03:01]} 3. Nc3 {[%clk 0:03:00]}  dxe4 {[%clk 0:03:00]} 4. Nxe4 {[%clk 0:03:01]}  Nf6 {[%clk 0:03:00]} 5. Nxf6+ {[%clk 0:03:01]}  exf6 {[%clk 0:02:59]} 6. Nf3 {[%clk 0:03:01]}  Bd6 {[%clk 0:02:59]} 7. Bd3 {[%clk 0:03:02]}  O-O {[%clk 0:02:59]} 8. O-O {[%clk 0:03:02]}  Be6 {[%clk 0:02:57]} 9. c3 {[%clk 0:03:01]}  Nd7 {[%clk 0:02:57]} 10. Qc2 {[%clk 0:03:01]}  h6 {[%clk 0:02:56]} 11. c4 {[%clk 0:02:56]}  Re8 {[%clk 0:02:56]} 12. b3 {[%clk 0:02:55]}  Bg4 {[%clk 0:02:47]} 13. Nd2 {[%clk 0:02:52]}  Be2 {[%clk 0:02:44]} 14. Bxe2 {[%clk 0:02:51]}  Rxe2 {[%clk 0:02:45]} 15. Qd3 {[%clk 0:02:51]}  Qe7 {[%clk 0:02:43]} 16. Nf3 {[%clk 0:02:48]}  Re8 {[%clk 0:02:42]} 17. Be3 {[%clk 0:02:46]}  Rxe3 {[%clk 0:02:36]} 18. fxe3 {[%clk 0:02:47]}  Qxe3+ {[%clk 0:02:37]} 19. Qxe3 {[%clk 0:02:48]}  Rxe3 {[%clk 0:02:38]} 20. Kf2 {[%clk 0:02:44]}  Re8 {[%clk 0:02:36]} 21. Rfe1 {[%clk 0:02:43]}  Rd8 {[%clk 0:02:36]} 22. Re2 {[%clk 0:02:41]}  g6 {[%clk 0:02:35]} 23. Rae1 {[%clk 0:02:33]}  Kf8 {[%clk 0:02:35]} 24. g3 {[%clk 0:02:32]}  Bb4 {[%clk 0:02:33]} 25. Rd1 {[%clk 0:02:31]}  f5 {[%clk 0:02:32]} 26. d5 {[%clk 0:02:30]}  Nc5 {[%clk 0:02:27]} 27. dxc6 {[%clk 0:02:02]}  Rxd1 {[%clk 0:01:46]} 28. c7 {[%clk 0:02:02]}  Ne4+ {[%clk 0:01:29]} 29. Rxe4 {[%clk 0:01:56]}  fxe4 {[%clk 0:01:21]} 30. c8=Q+ {[%clk 0:01:56]}  Kg7 {[%clk 0:01:20]} 31. Qxb7 {[%clk 0:01:26]}  Bc5+ {[%clk 0:01:17]} 32. Ke2 {[%clk 0:01:26]} 1-0


[Site "https://www.chess.com"]

[Event "Titled Tuesday Blitz April 11 Late 2023"]
[White "Hartikainen, Jarmo"]
[Black "Dahlgren, James Allen"]
[WhiteFideId "503134"]
[BlackFideId "22256873"]
[WhiteElo "2108"]
[BlackElo "1824"]
[Result "1-0"]
[Round "11"]
[TimeControl "180+2"]
[Date "2023.04.11"]
[WhiteClock "0:00:22"]
[BlackClock "0:00:26"]

1. e4 {[%clk 0:03:00]}  e6 {[%clk 0:02:59]} 2. d4 {[%clk 0:02:57]}  c5 {[%clk 0:02:57]} 3. Nf3 {[%clk 0:02:56]}  cxd4 {[%clk 0:02:55]} 4. Nxd4 {[%clk 0:02:56]}  Nf6 {[%clk 0:02:56]} 5. Nc3 {[%clk 0:02:56]}  Bb4 {[%clk 0:02:56]} 6. Bd3 {[%clk 0:02:51]}  Nc6 {[%clk 0:02:55]} 7. Nb5 {[%clk 0:02:40]}  O-O {[%clk 0:02:54]} 8. a3 {[%clk 0:02:40]}  Bxc3+ {[%clk 0:02:49]} 9. Nxc3 {[%clk 0:02:39]}  d5 {[%clk 0:02:50]} 10. exd5 {[%clk 0:02:38]}  exd5 {[%clk 0:02:50]} 11. O-O {[%clk 0:02:36]}  Bg4 {[%clk 0:02:46]} 12. f3 {[%clk 0:02:30]}  Bh5 {[%clk 0:02:46]} 13. Bg5 {[%clk 0:02:26]}  d4 {[%clk 0:02:22]} 14. Ne4 {[%clk 0:02:22]}  Bg6 {[%clk 0:02:13]} 15. Nxf6+ {[%clk 0:02:10]}  gxf6 {[%clk 0:02:14]} 16. Bh6 {[%clk 0:02:10]}  Re8 {[%clk 0:02:13]} 17. Re1 {[%clk 0:02:10]}  Qb6 {[%clk 0:02:06]} 18. Qd2 {[%clk 0:01:42]}  Qxb2 {[%clk 0:01:56]} 19. Qf4 {[%clk 0:01:15]}  Qc3 {[%clk 0:01:46]} 20. Kf2 {[%clk 0:00:38]}  Bxd3 {[%clk 0:00:38]} 21. Qxf6 {[%clk 0:00:30]}  Qxc2+ {[%clk 0:00:26]} 22. Kg3 {[%clk 0:00:22]} 1-0


[Site "https://www.chess.com"]

[Event "Titled Tuesday Blitz April 11 Late 2023"]
[White "Gabriel, Robert"]
[Black "Vargas, Mauricio"]
[WhiteFideId "4606477"]
[BlackFideId "4404572"]
[WhiteElo "2203"]
[BlackElo "1998"]
[Result "1-0"]
[Round "11"]
[TimeControl "180+2"]
[Date "2023.04.11"]
[WhiteClock "0:00:13"]
[BlackClock "0:00:01"]

1. d4 {[%clk 0:02:53]}  Nf6 {[%clk 0:02:58]} 2. c4 {[%clk 0:02:51]}  e6 {[%clk 0:02:58]} 3. a3 {[%clk 0:02:50]}  d5 {[%clk 0:02:57]} 4. e3 {[%clk 0:02:48]}  c6 {[%clk 0:02:57]} 5. Nf3 {[%clk 0:02:46]}  Bd6 {[%clk 0:02:55]} 6. Nc3 {[%clk 0:02:45]}  Nbd7 {[%clk 0:02:50]} 7. Bd3 {[%clk 0:02:44]}  dxc4 {[%clk 0:02:50]} 8. Bxc4 {[%clk 0:02:43]}  b5 {[%clk 0:02:50]} 9. Ba2 {[%clk 0:02:42]}  Bb7 {[%clk 0:02:49]} 10. O-O {[%clk 0:02:41]}  O-O {[%clk 0:02:44]} 11. e4 {[%clk 0:02:39]}  e5 {[%clk 0:02:40]} 12. dxe5 {[%clk 0:02:34]}  Nxe5 {[%clk 0:02:37]} 13. Nxe5 {[%clk 0:02:32]}  Bxe5 {[%clk 0:02:37]} 14. Qxd8 {[%clk 0:02:29]}  Raxd8 {[%clk 0:02:38]} 15. Be3 {[%clk 0:02:24]}  a5 {[%clk 0:02:32]} 16. f3 {[%clk 0:02:20]}  b4 {[%clk 0:02:32]} 17. axb4 {[%clk 0:02:17]}  axb4 {[%clk 0:02:32]} 18. Na4 {[%clk 0:02:15]}  Ba6 {[%clk 0:02:29]} 19. Rfd1 {[%clk 0:02:13]}  Bb5 {[%clk 0:02:27]} 20. Nc5 {[%clk 0:02:08]}  Bxb2 {[%clk 0:02:23]} 21. Rab1 {[%clk 0:02:06]}  Bc3 {[%clk 0:02:23]} 22. Bb3 {[%clk 0:01:54]}  h6 {[%clk 0:02:14]} 23. g4 {[%clk 0:01:51]}  Be2 {[%clk 0:02:02]} 24. Rxd8 {[%clk 0:01:48]}  Rxd8 {[%clk 0:02:00]} 25. Kf2 {[%clk 0:01:43]}  Bb5 {[%clk 0:01:52]} 26. h4 {[%clk 0:01:40]}  Bd2 {[%clk 0:01:30]} 27. g5 {[%clk 0:01:28]}  hxg5 {[%clk 0:01:26]} 28. hxg5 {[%clk 0:01:27]}  Ne8 {[%clk 0:01:26]} 29. g6 {[%clk 0:01:21]}  Bxe3+ {[%clk 0:00:55]} 30. Kxe3 {[%clk 0:01:18]}  Nd6 {[%clk 0:00:56]} 31. gxf7+ {[%clk 0:01:06]}  Nxf7 {[%clk 0:00:54]} 32. Kf4 {[%clk 0:00:59]}  Kf8 {[%clk 0:00:48]} 33. Ne6+ {[%clk 0:00:57]}  Ke7 {[%clk 0:00:45]} 34. Nxd8 {[%clk 0:00:56]}  Nxd8 {[%clk 0:00:46]} 35. Rg1 {[%clk 0:00:46]}  Kf8 {[%clk 0:00:39]} 36. Ke5 {[%clk 0:00:44]}  Nf7+ {[%clk 0:00:29]} 37. Ke6 {[%clk 0:00:43]}  Nd8+ {[%clk 0:00:24]} 38. Kd6 {[%clk 0:00:39]}  Nf7+ {[%clk 0:00:24]} 39. Kc5 {[%clk 0:00:36]}  Ne5 {[%clk 0:00:20]} 40. Kxb4 {[%clk 0:00:33]}  Nxf3 {[%clk 0:00:20]} 41. Rg3 {[%clk 0:00:21]}  Ne5 {[%clk 0:00:15]} 42. Kc5 {[%clk 0:00:20]}  Nd3+ {[%clk 0:00:11]} 43. Kd6 {[%clk 0:00:18]}  c5 {[%clk 0:00:04]} 44. e5 {[%clk 0:00:16]}  c4 {[%clk 0:00:04]} 45. Bc2 {[%clk 0:00:15]}  Nb4 {[%clk 0:00:01]} 46. Bg6 {[%clk 0:00:13]} 1-0


[Site "https://www.chess.com"]